bitfinex/quotes_ETHUSD_20250529
["timestamp","ask_amount","ask_price","bid_price","bid_amount"]
[1748498154747,0.34119341,2719.3,2719.1,3.67768747]
[1748498155044,0.34119341,2719.3,2719.2,3.67755222]
[1748498155552,0.34119341,2719.3,2719.2,13.17955222]
[1748498155845,0.34119341,2719.3,2719.2,15.31111601]
[1748498156337,0.20472126,2719.9,2719.8,3.67674093]
[1748498156487,0.20472126,2719.9,2719.8,11.67674093]
[1748498157019,0.20472126,2719.9,2719.8,8.0]
[1748498157189,0.20472126,2719.9,2719.8,11.67674093]
[1748498157392,0.20472126,2719.9,2719.7,1.502]
[1748498157393,0.20472126,2719.9,2719.7,9.502]
[1748498157633,0.20472126,2719.9,2718.4,5.48120068]
[1748498157634,3.67833245,2718.7,2716.8,3.68076261]
[1748498157790,0.7768,2718.5,2717.4,3.87164964]
[1748498157995,0.7768,2718.3,2716.3,10.0]
[1748498158346,0.7768,2718.3,2716.9,3.68055919]
[1748498158347,4.22890515,2718.2,2716.9,3.68055919]
[1748498158567,4.22890515,2718.2,2716.3,3.68139785]
[1748498158568,1.3268,2718.2,2717.2,3.68023461]
[1748498158860,1.3268,2718.2,2716.6,3.68100733]
[1748498159023,1.3268,2718.2,2716.4,3.68125798]
[1748498159024,0.55,2718.1,2716.9,3.68063599]
[1748498159224,0.55,2717.9,2715.6,3.68239536]
[1748498159559,0.55,2717.9,2716.3,3.6814311]
[1748498159560,0.7768,2717.8,2716.3,3.6814311]
[1748498159777,0.7768,2717.8,2716.2,3.68152803]
[1748498160085,0.55,2717.5,2716.7,3.68090087]
[1748498160296,0.55,2717.5,2716.7,3.68091718]
[1748498160424,0.55,2717.5,2716.1,0.05]
[1748498160425,0.55,2717.5,2716.1,1.637]
[1748498160626,0.55,2717.3,2716.3,3.68147203]
[1748498160825,0.55,2717.3,2716.2,8.0]
[1748498161064,0.55,2717.3,2716.5,3.68116244]
[1748498161273,0.771,2717.1,2716.1,0.05]
[1748498161424,0.771,2717.1,2716.2,3.68161401]
[1748498161627,0.771,2717.1,2717.0,3.68052999]
[1748498162226,0.771,2717.1,2716.3,0.3731614]
[1748498162227,0.771,2717.1,2716.3,4.05451783]
[1748498162530,0.771,2717.1,2717.0,3.68052999]
[1748498163055,0.771,2717.1,2716.9,3.68054127]
[1748498163255,0.771,2717.1,2716.1,0.05]
[1748498163256,0.771,2717.1,2716.2,1.588]
[1748498163476,0.771,2717.1,2716.3,0.53196991]
[1748498163788,0.771,2717.1,2716.7,3.68086273]
[1748498163964,0.771,2717.1,2716.8,3.68078535]
[1748498164271,0.771,2717.1,2716.3,0.53196991]
[1748498164469,0.771,2717.1,2716.8,3.68078658]
[1748498164676,0.771,2717.1,2716.9,3.68066546]
[1748498164895,0.55,2717.0,2716.6,3.68096753]
[1748498165075,0.771,2717.1,2716.1,0.05]
[1748498165394,0.771,2717.1,2717.0,3.68052999]
[1748498166173,0.55,2717.7,2717.6,3.67971739]
[1748498166174,0.7528,2717.7,2717.6,3.67971739]
[1748498166735,0.20256691,2717.8,2717.6,3.67971739]
[1748498166736,0.20256691,2717.8,2717.7,3.67958199]
[1748498169770,0.20256691,2717.8,2717.7,11.67958199]
[1748498169971,0.20256691,2717.8,2717.7,13.21551193]
[1748498176287,0.20256691,2717.8,2717.7,17.85651193]
[1748498180474,0.60789501,2718.5,2718.4,11.67863449]
[1748498180694,0.60789501,2718.5,2718.4,17.82763449]
[1748498180881,0.60789501,2718.5,2718.4,11.67863449]
[1748498181205,0.60789501,2718.5,2718.4,14.35449282]
[1748498181598,0.60789501,2718.5,2718.4,16.9867934]
[1748498185292,0.60789501,2718.5,2718.4,21.5797934]
[1748498187911,0.60789501,2718.5,2718.4,23.7186174]
[1748498189089,0.60789501,2718.5,2718.4,24.0019534]
[1748498190094,0.60789501,2718.5,2718.4,29.5197934]
[1748498190717,0.60789501,2718.5,2718.4,30.0697934]
[1748498190921,0.60789501,2718.5,2718.4,29.5197934]
[1748498191232,0.60789501,2718.5,2718.4,24.9267934]
[1748498191406,0.60789501,2718.5,2718.4,29.4807934]
[1748498191910,0.60789501,2718.5,2718.4,32.2125804]
[1748498192286,0.60789501,2718.5,2718.4,26.1215804]
[1748498192486,0.60789501,2718.5,2718.4,32.1485804]
[1748498193972,0.60789501,2718.5,2718.4,30.33387982]
[1748498198603,0.60789501,2718.5,2718.4,24.31787982]
[1748498198850,0.60789501,2718.5,2718.4,27.57109282]
[1748498199646,0.60789501,2718.5,2718.4,23.06709282]
[1748498199849,0.60789501,2718.5,2718.4,27.56609282]
[1748498200648,0.60789501,2718.5,2718.4,27.56209282]
[1748498201707,0.60789501,2718.5,2718.4,20.75749282]
[1748498201919,0.60789501,2718.5,2718.4,26.67049282]
[1748498203361,0.60789501,2718.5,2718.4,20.75749282]
[1748498203651,0.60789501,2718.5,2718.4,21.04563449]
[1748498206261,0.60789501,2718.5,2718.4,13.04563449]
[1748498206871,0.60789501,2718.5,2718.4,21.04563449]
[1748498208060,1.40099501,2718.5,2718.4,3.67863449]
[1748498209318,0.60789501,2718.5,2718.4,11.67863449]
[1748498209522,0.60789501,2718.5,2718.4,13.19066952]
[1748498213385,0.60789501,2718.5,2718.4,3.67863449]
[1748498213688,0.60789501,2718.5,2718.4,9.53763449]
[1748498213982,0.60789501,2718.5,2718.4,17.53763449]
[1748498215334,0.60789501,2718.5,2718.4,20.15718947]
[1748498215776,0.60789501,2718.5,2718.4,20.14718947]
[1748498215972,0.60789501,2718.5,2718.4,22.52978407]
[1748498216270,0.60789501,2718.5,2718.4,29.60669407]
[1748498216888,0.60789501,2718.5,2718.4,27.94662807]
[1748498217264,0.60789501,2718.5,2718.4,25.09488407]
[1748498218344,0.60789501,2718.5,2718.4,24.77210307]
[1748498221038,0.60789501,2718.5,2718.4,32.71110307]
[1748498224076,0.60789501,2718.5,2718.4,33.26110307]
[1748498225066,0.60789501,2718.5,2718.4,33.21010307]
[1748498225985,0.05,2718.9,2718.8,11.67809327]
[1748498226207,0.05,2718.9,2718.8,15.45861862]
[1748498226366,0.34236591,2719.7,2719.6,3.67701132]
[1748498226550,0.34236591,2719.7,2719.6,5.05301132]
[1748498227473,1.13616591,2719.7,2719.6,5.05301132]
[1748498229191,0.34236591,2719.7,2719.6,5.05301132]
[1748498229395,0.34236591,2719.7,2719.6,16.47808082]
[1748498229578,0.34236591,2719.7,2719.6,34.50538882]
[1748498229774,0.34236591,2719.7,2719.6,27.46772182]
[1748498229983,0.34236591,2719.7,2719.6,24.07150482]
[1748498230191,0.34236591,2719.7,2719.6,22.63890682]
[1748498230729,0.20455957,2720.2,2719.8,3.67674093]
[1748498230853,0.20455957,2720.2,2720.1,13.4777904]
[1748498231050,0.20455957,2720.2,2720.1,17.8267904]
[1748498231880,0.20455957,2720.2,2720.1,13.05233542]
[1748498232482,0.20455957,2720.2,2720.1,11.67633542]
[1748498232683,0.20455957,2720.2,2720.1,13.05233542]
[1748498232885,0.20455957,2720.2,2720.1,13.71770579]
[1748498238793,0.20455957,2720.2,2720.1,16.48339779]
[1748498238996,0.20455957,2720.2,2720.1,14.26770579]
[1748498239739,0.20455957,2720.2,2720.1,16.50439779]
[1748498240822,0.20455957,2720.2,2720.1,17.32209779]
[1748498242781,0.20455957,2720.2,2720.1,21.61809779]
[1748498244410,0.05,2720.9,2720.8,3.67538959]
[1748498244736,0.05,2720.9,2720.8,4.04292855]
[1748498245540,0.05,2720.9,2720.8,12.04292855]
[1748498246369,0.05,2720.9,2720.8,5.89472104]
[1748498246740,0.05,2720.9,2720.8,11.37156561]
[1748498247155,0.05,2720.9,2720.8,11.92156561]
[1748498247363,0.05,2720.9,2720.8,12.42704117]
[1748498248630,0.05,2720.9,2720.8,15.18540417]
[1748498248858,0.05,2720.9,2720.8,14.70725417]
[1748498249434,0.05,2720.9,2720.8,12.42704117]
[1748498250155,0.05,2720.9,2720.8,3.67538959]
[1748498250352,0.05,2720.9,2720.8,5.00138959]
[1748498250752,0.05,2720.9,2720.8,13.00138959]
[1748498252572,0.05,2720.9,2720.8,5.00138959]
[1748498252745,0.05,2720.9,2720.8,13.00138959]
[1748498254559,0.05,2720.9,2720.8,14.66907999]
[1748498259382,0.05,2720.9,2720.8,13.00138959]
[1748498264843,0.8773,2720.9,2720.8,13.00138959]
[1748498269697,0.05,2720.9,2720.8,13.00138959]
[1748498272021,0.05,2720.9,2720.8,14.34218959]
[1748498275096,0.05,2720.9,2720.8,11.67538959]
[1748498275324,0.05,2720.9,2720.8,17.08038959]
[1748498275536,0.05,2720.9,2720.8,19.15597999]
[1748498276836,0.05,2720.9,2720.8,28.58756599]
[1748498277000,0.05,2720.9,2720.8,26.20248299]
[1748498277200,0.05,2720.9,2720.8,19.70597999]
[1748498277902,0.05,2720.9,2720.8,23.13701699]
[1748498279039,0.05,2720.9,2720.8,22.60301699]
[1748498279629,0.05,2720.9,2720.8,21.81886299]
[1748498279843,0.05,2720.9,2720.8,29.75086299]
[1748498280142,0.05,2720.9,2720.8,14.91497999]
[1748498280847,0.05,2720.9,2720.8,22.91497999]
[1748498283705,0.05,2720.9,2720.8,32.04100299]
[1748498284321,0.05,2720.9,2720.8,30.83436999]
[1748498284523,0.05,2720.9,2720.8,29.26821999]
[1748498284949,0.05,2720.9,2720.8,26.44506899]
[1748498285564,0.05,2720.9,2720.8,26.12395399]
[1748498285863,0.05,2720.9,2720.8,25.79699499]
[1748498286852,0.05,2720.9,2720.8,23.46497999]
[1748498287843,0.05,2720.9,2720.8,29.81706299]
[1748498288584,0.05,2720.9,2720.8,30.61286299]
[1748498289541,0.7836,2721.8,2721.2,4.22484933]
[1748498289781,0.7836,2721.8,2721.2,16.74162077]
[1748498289965,0.05,2721.9,2721.2,16.74162077]
[1748498289966,0.05,2721.9,2721.8,3.67403923]
[1748498290171,0.05,2721.9,2721.8,12.90503923]
[1748498291575,0.05,2721.9,2721.8,17.02803923]
[1748498292247,0.05,2721.9,2721.8,12.90503923]
[1748498292448,0.05,2721.9,2721.8,14.97495928]
[1748498297418,0.05,2721.9,2721.8,3.67403923]
[1748498297567,0.8176,2721.9,2721.8,4.86003923]
[1748498297753,0.8176,2721.9,2721.8,3.67403923]
[1748498301193,0.8176,2721.9,2721.8,11.67403923]
[1748498301554,0.8176,2721.9,2721.8,12.86003923]
[1748498301981,0.8176,2721.9,2721.8,4.86003923]
[1748498306636,0.8176,2721.9,2721.8,3.67403923]
[1748498314644,0.8176,2721.9,2721.8,4.86003923]
[1748498316339,0.8176,2721.9,2721.8,12.86003923]
[1748498316571,0.05,2721.9,2721.8,12.86003923]
[1748498321345,0.05,2721.9,2721.8,14.51346017]
[1748498324346,0.05,2721.9,2721.8,12.81303923]
[1748498332583,0.05,2721.9,2721.8,11.67403923]
[1748498332790,0.05,2721.9,2721.8,12.81303923]
[1748498334659,0.05,2721.9,2721.8,11.67403923]
[1748498334862,0.05,2721.9,2721.1,3.67496256]
[1748498334863,0.7912,2721.8,2721.2,1.139]
[1748498335181,0.7912,2721.8,2721.7,3.67417422]
[1748498335993,0.05,2721.9,2721.8,3.67403923]
[1748498336206,0.8742,2721.9,2721.8,3.67403923]
[1748498340424,0.8742,2721.9,2721.3,1.139]
[1748498340625,0.8243,2721.8,2721.4,3.67450922]
[1748498340923,0.8243,2721.7,2721.5,3.67443247]
[1748498342291,0.8243,2721.7,2721.4,3.6745249]
[1748498342805,0.30343,2721.8,2720.8,7.932]
[1748498342806,2.16,2721.6,2720.8,7.932]
[1748498343123,0.30343,2721.8,2720.8,7.932]
[1748498343124,0.7866,2721.4,2720.8,7.932]
[1748498343302,0.7866,2721.4,2721.0,3.67511189]
[1748498343922,4.7806,2721.4,2721.0,3.67511189]
[1748498344127,4.7806,2721.4,2721.2,3.67477029]
[1748498344287,0.7866,2721.4,2721.3,3.67471429]
[1748498345324,0.7866,2721.4,2720.8,7.932]
[1748498345528,0.7866,2721.4,2721.0,3.67506835]
[1748498346426,0.7866,2721.4,2720.8,7.932]
[1748498346587,0.7866,2721.4,2720.8,11.60732192]
[1748498347225,0.7866,2721.4,2720.8,3.67532192]
[1748498347529,0.801,2721.0,2720.4,3.6759066]
[1748498347887,0.801,2721.0,2720.5,3.67577502]
[1748498349048,0.801,2721.0,2720.3,3.67604244]
[1748498349049,1.316,2720.9,2720.3,3.67598097]
[1748498349590,1.316,2720.9,2720.4,3.67591125]
[1748498350330,0.8119,2720.8,2719.8,8.0]
[1748498350623,0.55,2721.1,2717.6,10.85344389]
[1748498350624,0.8119,2720.6,2720.0,3.67634267]
[1748498350932,0.8119,2720.6,2720.0,3.67634053]
[1748498352315,0.55,2720.5,2719.8,3.67666438]
[1748498352518,0.55,2720.5,2719.9,3.67658243]
[1748498352519,0.7824,2720.4,2719.9,3.67658243]
[1748498352734,1.13164,2720.4,2719.9,3.67658243]
[1748498354238,1.13164,2720.4,2719.4,11.61124669]
[1748498354240,1.13164,2720.4,2719.8,3.67668303]
[1748498354623,1.13164,2720.4,2719.7,3.67685887]
[1748498354943,1.13164,2720.4,2719.8,3.67666306]
[1748498355518,1.13164,2720.4,2719.9,3.67660354]
[1748498355712,1.13164,2720.4,2719.7,3.67685887]
[1748498355713,1.13164,2720.4,2719.8,3.67671103]
[1748498356027,2.16,2720.3,2719.8,3.67661196]
[1748498356858,2.16,2720.3,2719.6,1.14]
[1748498357016,2.16,2720.3,2720.2,3.67620027]
[1748498359628,0.7539,2720.7,2720.5,3.67579489]
[1748498359891,2.16,2721.0,2720.9,3.67525451]
[1748498361552,2.16,2721.0,2720.6,3.67560308]
[1748498361956,2.16,2721.0,2720.9,3.67525451]
[1748498364849,2.16,2721.3,2721.1,3.67498438]
[1748498365068,3.983,2721.4,2721.3,3.6745823]
[1748498365368,0.73497521,2721.4,2721.3,3.6745823]
[1748498365569,2.9168,2721.5,2721.4,3.67457926]
[1748498367132,2.16,2721.5,2721.4,3.67457926]
[1748498370391,0.796,2721.8,2721.7,3.67417422]
[1748498370552,0.05,2721.9,2721.8,3.67403923]
[1748498379506,0.05,2721.9,2721.6,3.67430121]
[1748498379507,4.031,2721.9,2721.6,3.67419938]
[1748498379685,4.031,2721.9,2721.7,3.67417422]
[1748498379686,0.7898,2721.8,2721.7,3.67417422]
[1748498379884,1.48788,2721.8,2721.7,3.67417422]
[1748498382215,0.7898,2721.8,2721.7,3.67417422]
[1748498382600,0.05,2721.9,2721.8,3.67403923]
[1748498382825,0.05,2721.9,2721.8,11.67403923]
[1748498383283,0.05,2721.9,2721.8,4.78403923]
[1748498384493,0.05,2721.9,2721.8,3.67403923]
[1748498386207,0.05,2721.9,2721.8,4.51986057]
[1748498390297,0.05,2721.9,2721.8,3.67403923]
[1748498394022,0.05,2721.9,2721.8,11.67403923]
[1748498397328,0.3418508,2722.3,2721.8,11.67403923]
[1748498397329,0.3418508,2722.3,2721.8,12.46883923]
[1748498397529,0.3418508,2722.3,2722.2,11.67349937]
[1748498397731,0.3418508,2722.3,2722.2,12.46829937]
[1748498397899,0.3418508,2722.3,2722.2,14.08249147]
[1748498398106,0.3418508,2722.3,2722.2,19.16949147]
[1748498398612,0.3418508,2722.3,2722.2,14.08249147]
[1748498399043,0.3418508,2722.3,2722.2,15.19149147]
[1748498399292,0.3418508,2722.3,2722.2,11.67349937]
[1748498399403,0.3418508,2722.3,2722.2,12.78249937]
[1748498400015,0.3418508,2722.3,2722.2,11.67349937]
[1748498400215,0.3418508,2722.3,2722.2,3.67349937]
[1748498400942,0.3418508,2722.3,2722.2,11.67349937]
[1748498401548,0.3418508,2722.3,2722.2,3.67349937]
[1748498401738,0.3418508,2722.3,2722.2,4.46829937]
[1748498402244,0.3418508,2722.3,2722.2,12.46829937]
[1748498402401,0.3418508,2722.3,2722.2,12.78249937]
[1748498403441,0.3418508,2722.3,2722.2,4.78249937]
[1748498403642,0.3418508,2722.3,2722.2,12.78249937]
[1748498403840,0.3418508,2722.3,2722.2,14.42811147]
[1748498404645,0.3418508,2722.3,2722.2,13.31911147]
[1748498404843,0.3418508,2722.3,2722.2,12.78249937]
[1748498406712,0.3418508,2722.3,2722.2,11.67349937]
[1748498407023,0.3418508,2722.3,2722.2,12.78249937]
[1748498407752,0.3418508,2722.3,2722.2,11.67349937]
[1748498408736,0.3418508,2722.3,2722.2,3.67349937]
[1748498410451,0.3418508,2722.3,2722.2,5.33001147]
[1748498410655,0.3418508,2722.3,2722.2,4.78249937]
[1748498415861,0.3418508,2722.3,2722.2,3.67349937]
[1748498416065,0.8274,2722.2,2721.1,0.8117]
[1748498416359,0.8274,2722.2,2721.7,3.67408572]
[1748498416728,0.8274,2722.2,2721.8,3.67400076]
[1748498417059,0.55,2721.9,2721.0,4.78202562]
[1748498417259,0.55,2721.9,2721.6,3.67421899]
[1748498417260,0.8131,2721.8,2721.6,3.67421899]
[1748498417462,0.8131,2721.8,2721.7,3.67417422]
[1748498417945,0.7816,2721.6,2721.4,3.6745142]
[1748498418141,0.7816,2721.6,2721.5,3.67444424]
[1748498418559,4.7818,2721.8,2721.7,3.67417422]
[1748498418757,5.25998,2721.8,2721.7,3.67417422]
[1748498419254,1.28498,2721.8,2721.7,3.67417422]
[1748498419460,0.8068,2721.8,2721.7,3.67417422]
[1748498420169,0.51442508,2722.1,2721.6,3.67430127]
[1748498420170,4.48942508,2722.1,2722.0,3.67376928]
[1748498420465,3.975,2722.1,2722.0,3.67376928]
[1748498420763,0.832,2722.1,2722.0,3.67376928]
[1748498423646,0.832,2722.1,2721.3,9.5608085]
[1748498423647,0.3418508,2722.3,2722.2,3.67349937]
[1748498428842,0.3418508,2722.3,2722.2,4.49609937]
[1748498429046,0.3418508,2722.3,2722.2,5.4237718]
[1748498431587,0.3418508,2722.3,2722.2,13.4237718]
[1748498436928,0.3418508,2722.3,2722.2,10.99063257]
[1748498437053,0.3418508,2722.3,2722.2,14.96163257]
[1748498439695,0.05,2722.9,2722.8,8.0]
[1748498439900,0.05,2722.9,2722.8,14.2243927]
[1748498441056,0.34214445,2723.3,2723.2,12.42505041]
[1748498441257,0.34214445,2723.3,2723.2,15.32985324]
[1748498442095,0.34214445,2723.3,2723.2,14.22385324]
[1748498442262,0.34214445,2723.3,2723.2,15.32985324]
[1748498442459,0.34214445,2723.3,2723.2,12.42505041]
[1748498442792,0.34214445,2723.3,2723.2,12.77815041]
[1748498444705,0.34214445,2723.3,2723.2,11.67215041]
[1748498445002,0.34214445,2723.3,2723.2,12.77815041]
[1748498447301,0.34214445,2723.3,2723.2,11.67215041]
[1748498447501,0.34214445,2723.3,2723.2,12.77515041]
[1748498457112,0.34214445,2723.3,2723.2,13.57635041]
[1748498458830,0.34214445,2723.3,2723.2,12.47335041]
[1748498459038,0.34214445,2723.3,2723.2,12.77515041]
[1748498459987,0.34214445,2723.3,2723.2,14.57153812]
[1748498460132,0.34214445,2723.3,2723.2,15.37143812]
[1748498462542,0.34214445,2723.3,2723.2,19.33543812]
[1748498463876,0.34214445,2723.3,2723.2,14.26843812]
[1748498464081,0.34214445,2723.3,2723.2,12.77515041]
[1748498464243,0.34214445,2723.3,2723.2,14.57153812]
[1748498464442,0.34214445,2723.3,2723.2,15.32223812]
[1748498465196,0.34214445,2723.3,2723.2,19.28623812]
[1748498466861,0.05,2723.9,2723.8,4.4948415]
[1748498467203,0.34137551,2724.1,2724.0,11.67107195]
[1748498467779,0.34137551,2724.1,2724.0,12.77407195]
[1748498472125,0.34137551,2724.1,2724.0,16.73607195]
[1748498472315,0.34137551,2724.1,2724.0,11.67107195]
[1748498472509,0.34137551,2724.1,2724.0,16.73607195]
[1748498474190,0.34137551,2724.1,2724.0,11.67107195]
[1748498474427,0.34137551,2724.1,2724.0,16.73507195]
[1748498475440,0.34137551,2724.1,2724.0,11.67107195]
[1748498475622,0.34137551,2724.1,2724.0,16.73507195]
[1748498476831,0.34137551,2724.1,2724.0,16.73007195]
[1748498477524,0.34137551,2724.1,2724.0,11.67107195]
[1748498477824,0.34137551,2724.1,2724.0,16.73007195]
[1748498478124,0.34137551,2724.1,2724.0,12.77007195]
[1748498478716,0.34137551,2724.1,2724.0,4.77007195]
[1748498478918,0.34137551,2724.1,2724.0,12.77007195]
[1748498479650,0.34137551,2724.1,2724.0,11.67107195]
[1748498479797,0.34137551,2724.1,2724.0,12.77007195]
[1748498480597,0.34137551,2724.1,2724.0,11.67107195]
[1748498480802,0.34137551,2724.1,2724.0,12.77007195]
[1748498482371,1.15017551,2724.1,2724.0,3.67107195]
[1748498486924,1.15017551,2724.1,2724.0,11.67107195]
[1748498486925,0.34137551,2724.1,2724.0,11.67107195]
[1748498487514,1.12877551,2724.1,2724.0,11.67107195]
[1748498487737,1.12877551,2724.1,2724.0,4.77007195]
[1748498488137,1.12877551,2724.1,2724.0,3.67107195]
[1748498495303,0.34137551,2724.1,2724.0,3.67107195]
[1748498495604,0.34137551,2724.1,2724.0,4.51519854]
[1748498495809,0.34137551,2724.1,2724.0,12.51519854]
[1748498498904,0.34137551,2724.1,2724.0,12.77007195]
[1748498499785,1.16247551,2724.1,2724.0,12.77007195]
[1748498500153,1.16247551,2724.1,2724.0,11.67107195]
[1748498500650,0.34137551,2724.1,2724.0,11.67107195]
[1748498507882,0.34137551,2724.1,2724.0,3.67107195]
[1748498508073,0.34137551,2724.1,2723.3,0.7919]
[1748498508074,3.25927551,2724.1,2723.1,0.8185]
[1748498508272,3.25927551,2724.1,2724.0,3.67107195]
[1748498508546,3.58520306,2724.1,2724.0,3.67107195]
[1748498508875,3.58520306,2724.1,2722.8,0.7624]
[1748498508876,0.8299,2724.0,2722.8,0.7624]
[1748498509078,0.8299,2723.9,2723.1,3.67228526]
[1748498509914,0.8299,2723.9,2723.8,3.6713415]
[1748498510210,2.9899,2723.9,2723.8,3.6713415]
[1748498510408,3.35562031,2723.9,2723.8,3.6713415]
[1748498511814,3.35562031,2723.9,2723.7,3.67147607]
[1748498512115,0.8206,2723.8,2723.7,3.67147607]
[1748498513877,0.8206,2723.8,2723.6,3.67155562]
[1748498514117,0.8206,2723.8,2723.7,3.6714763]
[1748498514321,1.15523203,2723.8,2723.7,3.6714763]
[1748498515714,3.31523203,2723.8,2723.7,3.6714763]
[1748498516799,3.31523203,2723.8,2723.6,3.67156431]
[1748498517011,0.7712,2723.7,2723.1,1.094]
[1748498517226,0.7712,2723.7,2723.5,3.67174591]
[1748498517227,2.16,2723.6,2723.5,3.67174591]
[1748498517519,2.4865832,2723.6,2723.5,3.67174591]
[1748498517720,2.4865832,2723.6,2723.4,3.6718326]
[1748498517906,0.8035,2723.5,2723.2,3.67215041]
[1748498518108,0.32900832,2723.4,2723.3,3.67192735]
[1748498521027,0.8035,2723.5,2723.4,3.67188073]
[1748498521332,2.16,2723.6,2723.5,3.67174591]
[1748498526526,2.16,2723.6,2723.5,12.47444591]
[1748498526832,0.34137551,2724.1,2723.5,12.47444591]
[1748498526833,2.16,2724.0,2723.9,3.67120672]
[1748498527032,0.34137551,2724.1,2723.9,3.67120672]
[1748498527033,2.50137551,2724.1,2724.0,3.67107195]
[1748498527206,3.63690306,2724.1,2723.2,0.8027]
[1748498527407,3.63690306,2724.1,2723.7,3.67139697]
[1748498527408,0.55,2724.0,2723.7,3.67139697]
[1748498527597,0.8233,2723.9,2723.7,3.67139697]
[1748498530047,1.3733,2723.9,2723.8,3.6713415]
[1748498531760,0.8233,2723.9,2723.8,3.6713415]
[1748498532265,1.33456755,2723.9,2723.8,3.6713415]
[1748498533437,0.55,2723.6,2722.8,3.67264443]
[1748498533634,0.55,2723.6,2722.6,7.929]
[1748498533635,0.7745,2723.4,2722.6,7.929]
[1748498533848,4.497,2723.5,2722.8,3.67261471]
[1748498533849,0.7745,2723.1,2722.8,3.67261471]
[1748498534047,0.7745,2723.1,2722.9,3.67252952]
[1748498534554,0.7745,2723.1,2722.9,3.67253003]
[1748498534787,0.7745,2723.1,2722.9,3.67246349]
[1748498535158,3.947,2723.0,2722.9,3.67246349]
[1748498535344,4.47415,2723.0,2722.9,3.67246349]
[1748498539568,6.63415,2723.0,2722.9,3.67246349]
[1748498540266,6.63315,2723.0,2722.9,3.67246349]
[1748498540731,2.68715,2723.0,2722.9,3.67246349]
[1748498540931,2.16,2723.0,2722.9,3.67246349]
[1748498545457,0.7796,2723.5,2723.4,3.67188073]
[1748498548796,4.7236,2723.5,2723.4,3.67188073]
[1748498549520,2.9361,2723.7,2723.5,3.67173923]
[1748498549694,4.23761,2723.6,2723.5,3.67173923]
[1748498550000,4.23761,2723.6,2723.5,3.67174591]
[1748498550157,0.29361,2723.6,2723.5,3.67174591]
[1748498550498,4.23761,2723.6,2723.5,3.67174591]
[1748498551610,2.9361,2723.7,2723.6,3.6716111]
[1748498551786,6.8801,2723.7,2723.6,3.6716111]
[1748498554718,6.103,2723.7,2723.6,3.6716111]
[1748498555610,6.102,2723.7,2723.6,3.6716111]
[1748498561526,2.16,2724.1,2724.0,3.67107195]
[1748498562039,2.16,2724.1,2724.0,4.76107195]
[1748498563626,2.16,2724.1,2724.0,3.67107195]
[1748498563821,2.45664,2724.1,2724.0,3.67107195]
[1748498564027,2.16,2724.1,2724.0,3.67107195]
[1748498564226,6.1,2724.1,2724.0,3.67107195]
[1748498564537,6.1,2724.1,2723.9,3.6711682]
[1748498564690,6.1,2724.1,2724.0,3.67107195]
[1748498569834,6.1,2724.1,2723.9,3.67109566]
[1748498570152,6.79064,2724.1,2723.8,3.67129628]
[1748498570346,6.79064,2724.1,2724.0,3.67107195]
[1748498571112,6.79064,2724.1,2723.6,3.6715949]
[1748498571449,6.1,2724.1,2723.6,3.6715949]
[1748498571649,6.1,2724.1,2723.5,1.9152]
[1748498571650,6.1,2724.1,2724.0,3.67107195]
[1748498572244,2.16,2724.1,2724.0,3.67107195]
[1748498572485,2.16,2724.1,2724.0,4.44577195]
[1748498572649,0.8296,2724.6,2724.5,3.67039823]
[1748498572650,2.16,2724.6,2724.5,3.67039823]
[1748498572946,2.7697,2724.6,2724.5,3.67039823]
[1748498574333,6.097,2724.6,2724.5,3.67039823]
[1748498575458,2.16,2724.6,2724.5,3.67039823]
[1748498575623,0.39100139,2724.9,2724.8,3.66999412]
[1748498575820,4.6692844,2724.9,2724.8,3.66999412]
[1748498576047,5.21917284,2724.9,2724.8,3.66999412]
[1748498576237,4.87688983,2724.9,2724.8,3.66999412]
[1748498577427,4.87688983,2724.9,2724.4,0.757]
[1748498577964,0.94088983,2724.9,2724.8,3.66999412]
[1748498578127,4.32600139,2724.9,2724.8,3.66999412]
[1748498581163,6.48600139,2724.9,2724.8,3.66999412]
[1748498581938,6.48500139,2724.9,2724.8,3.66999412]
[1748498582665,2.55100139,2724.9,2724.8,3.66999412]
[1748498582841,6.48500139,2724.9,2724.8,3.66999412]
[1748498583970,7.13350153,2724.9,2724.7,3.6700991]
[1748498584334,3.933,2724.8,2724.7,3.6700991]
[1748498584537,4.6893,2724.8,2724.7,3.6700991]
[1748498585442,3.933,2724.8,2724.7,3.6700991]
[1748498587972,3.933,2724.8,2724.3,1.085]
[1748498588176,0.71325015,2724.7,2724.4,3.67053296]
[1748498588375,0.71325015,2724.7,2724.6,3.67026352]
[1748498588940,0.71325015,2724.7,2724.5,3.67032966]
[1748498589206,0.809,2724.6,2724.3,1.085]
[1748498589343,0.809,2724.6,2723.7,3.67138192]
[1748498589344,4.482,2724.5,2723.7,1.085]
[1748498589539,2.9051,2724.4,2724.1,3.67092935]
[1748498589789,2.9051,2724.4,2724.2,3.6706691]
[1748498590194,2.9051,2724.4,2724.3,3.67066769]
[1748498590344,6.092,2724.4,2724.3,3.67066769]
[1748498590861,6.092,2724.4,2724.1,3.6708891]
[1748498591900,6.092,2724.4,2724.2,3.67076578]
[1748498592681,6.092,2724.4,2724.3,3.67066769]
[1748498595281,2.16,2724.4,2724.3,3.67066769]
[1748498595682,6.09,2724.4,2724.3,3.67066769]
[1748498595885,3.93,2724.4,2724.3,3.67066769]
[1748498596383,2.16,2724.5,2724.4,3.67053296]
[1748498596686,6.09,2724.5,2724.4,3.67053296]
[1748498598784,2.16,2724.5,2724.4,3.67053296]
[1748498600325,0.39100139,2724.9,2724.7,3.67012882]
[1748498600326,2.16,2724.8,2724.7,3.67012882]
[1748498600705,6.089,2724.8,2724.7,3.67012882]
[1748498601111,2.16,2724.8,2724.7,3.67012882]
[1748498601314,2.80800014,2724.8,2724.7,3.67012882]
[1748498601800,6.73700014,2724.8,2724.7,3.67012882]
[1748498601998,6.089,2724.8,2724.7,3.67012882]
[1748498602608,2.16,2724.8,2724.7,3.67012882]
[1748498604827,4.31900139,2724.9,2724.8,3.66999412]
[1748498607248,4.31900139,2724.9,2724.7,0.07127527]
[1748498607447,0.39100139,2724.9,2724.7,0.07127527]
[1748498607628,0.39100139,2724.9,2724.8,3.66999412]
[1748498611384,0.39100139,2724.9,2724.8,4.77815894]